bitfinex/quotes_ETHUSD_20220103
["timestamp","ask_amount","ask_price","bid_price","bid_amount"]
[1641221719048,0.0113094,3803.9,3803.5,1.42297754]
[1641221719247,0.0113094,3803.9,3803.5,1.42525124]
[1641221719446,0.0113094,3803.9,3803.6,0.00170527]
[1641221720448,0.0113094,3803.9,3803.5,0.0022737]
[1641221720684,2.97303081,3803.8,3803.4,0.00284212]
[1641221721083,1.08378776,3803.6,3803.4,0.00284212]
[1641221721688,2.97303081,3803.8,3803.4,0.00284212]
[1641221721890,2.97303081,3803.5,3803.4,0.00284212]
[1641221722689,2.97303081,3803.8,3803.4,0.00284212]
[1641221724732,2.97303081,3803.8,3803.4,1.3700595]
[1641221725134,2.97303081,3803.8,3803.5,0.0022737]
[1641221725535,0.0113094,3803.9,3803.5,0.0022737]
[1641221725733,0.0113094,3803.9,3803.4,1.35797926]
[1641221725933,0.0113094,3803.9,3803.3,0.0011905]
[1641221725934,0.00170527,3803.8,3803.3,0.0011905]
[1641221726140,0.00170527,3803.8,3803.3,0.6584605]
[1641221726341,0.00113685,3803.7,3803.3,2.6584605]
[1641221726540,0.00113685,3803.7,3803.3,0.6584605]
[1641221726741,0.00170527,3803.8,3803.3,0.6584605]
[1641221727141,0.0113094,3803.9,3803.3,0.6584605]
[1641221727142,0.00113685,3803.7,3803.4,1.31435]
[1641221727339,0.0113094,3803.9,3803.4,1.31435]
[1641221727539,0.0113094,3803.9,3803.5,2.38263273]
[1641221727739,0.91334508,3805.7,3803.6,8.25]
[1641221727941,0.91334508,3805.7,3804.0,2.0]
[1641221728187,0.00682108,3804.9,3804.4,1.314]
[1641221728593,0.00625266,3804.8,3804.5,1.3138933]
[1641221728797,0.00625266,3804.8,3804.6,1.05866657]
[1641221728999,1.19091077,3805.9,3804.6,1.05866657]
[1641221729000,0.00568423,3804.7,3804.6,1.05866657]
[1641221729998,0.00568423,3804.7,3804.6,1.0597188]
[1641221734543,0.00568423,3804.7,3804.6,3.0597188]
[1641221734946,8.423e-05,3804.7,3804.6,3.6737188]
[1641221735145,0.06173355,3805.6,3804.6,3.6737188]
[1641221735146,0.06173355,3805.6,3804.7,9.2]
[1641221735443,0.00454739,3805.5,3805.4,1.37266065]
[1641221736080,0.00454739,3805.5,3805.3,2.0]
[1641221736287,0.00454739,3805.5,3805.3,0.65675]
[1641221736493,0.06173355,3805.6,3805.2,1.31349]
[1641221736494,0.00397897,3805.4,3805.2,1.31349]
[1641221736887,0.00341054,3805.3,3805.2,1.31349]
[1641221737088,0.00341054,3805.3,3805.2,2.63504347]
[1641221737792,0.00341054,3805.3,3805.2,1.31349]
[1641221738090,0.00341054,3805.3,3805.0,1.31386]
[1641221738491,0.00284212,3805.2,3805.0,1.31386]
[1641221738891,0.0022737,3805.1,3805.0,1.31386]
[1641221739096,0.0022737,3805.1,3804.9,0.65692]
[1641221739532,4.23413864,3805.5,3805.0,1.30825404]
[1641221739936,0.00170527,3805.4,3805.2,2.65688]
[1641221740342,2.9719046,3805.9,3805.2,2.65688]
[1641221740343,0.00113684,3805.3,3805.2,2.65688]
[1641221740740,0.00113684,3805.3,3805.2,0.81620659]
[1641221741140,0.00113684,3805.3,3805.2,0.817184]
[1641221741141,0.01145902,3805.3,3805.2,0.817184]
[1641221741542,0.01145902,3805.3,3805.2,1.117184]
[1641221741750,2.9719046,3806.1,3805.2,0.817184]
[1641221741943,2.9719046,3806.1,3805.7,0.1592]
[1641221742144,0.00397897,3806.0,3805.8,1.28879934]
[1641221742544,0.00341055,3805.9,3805.8,1.28879934]
[1641221742945,0.00341055,3805.9,3805.8,1.58879934]
[1641221743998,5.68666957,3806.8,3806.7,0.93466353]
[1641221744504,5.68666957,3806.8,3806.7,1.23466353]
[1641221744726,5.68666957,3807.1,3806.3,0.43064678]
[1641221744901,0.01205289,3806.8,3806.3,0.43064678]
[1641221745103,0.00454738,3806.7,3806.6,0.6566339]
[1641221746405,0.00454738,3806.7,3806.6,1.9699339]
[1641221746599,0.00454738,3806.7,3806.6,2.2699339]
[1641221746799,0.00454738,3806.7,3806.5,0.95664]
[1641221746800,0.00454738,3806.7,3806.5,0.65664]
[1641221749675,0.77649121,3805.7,3805.6,0.06126174]
[1641221750576,0.4017,3805.8,3805.6,0.06126174]
[1641221750843,0.00170527,3806.2,3804.4,3.52084656]
[1641221750844,0.2562,3804.6,3804.4,3.52084656]
[1641221751042,0.2562,3804.6,3804.4,0.95687]
[1641221751244,0.2562,3804.6,3804.5,0.00795793]
[1641221751442,1.29833,3804.5,3803.9,0.314]
[1641221751645,1.31382,3804.3,3803.9,0.314]
[1641221751845,1.31382,3804.3,3804.0,1.16408125]
[1641221752045,1.31382,3804.3,3804.0,2.47793125]
[1641221752246,1.97072,3804.3,3804.0,2.47408418]
[1641221752450,1.97072,3804.3,3804.0,2.47520553]
[1641221753248,1.97072,3804.3,3804.0,2.77520553]
[1641221753450,0.65689,3804.2,3804.0,2.77520553]
[1641221753850,0.51970039,3804.2,3804.0,2.77520553]
[1641221754055,0.62082877,3804.6,3804.1,1.314]
[1641221754250,0.00113684,3806.1,3804.1,1.314]
[1641221754463,6.85,3806.2,3804.8,0.65667]
[1641221754660,12.10406,3806.2,3805.4,0.6565971]
[1641221754863,12.10406,3806.2,3805.5,0.314]
[1641221754864,0.01136847,3806.1,3805.5,0.314]
[1641221755063,0.01136847,3806.1,3806.0,1.03331095]
[1641221755263,2.37184097,3806.5,3806.3,0.65653]
[1641221755465,2.37184097,3806.5,3806.4,0.314]
[1641221755663,2.37184097,3806.5,3806.4,0.614]
[1641221756164,2.37184097,3806.5,3806.4,1.614]
[1641221756363,1.96936,3806.7,3806.5,0.1001]
[1641221756567,1.96936,3806.7,3806.6,0.4141]
[1641221757162,0.19406,3806.7,3806.6,3.19664419]
[1641221757370,0.61509178,3806.9,3806.8,0.1001]
[1641221757563,0.61509178,3806.9,3806.8,3.15572047]
[1641221757763,0.2798302,3807.5,3806.8,3.15572047]
[1641221757764,0.65633,3807.1,3806.8,3.15572047]
[1641221757962,9.90437554,3809.4,3807.1,0.1001]
[1641221758195,3.41993085,3809.8,3807.3,9.3001]
[1641221758196,0.00738951,3807.4,3807.3,9.3001]
[1641221758401,0.65623,3807.5,3807.4,0.1001]
[1641221758599,0.65623,3807.5,3807.4,0.4141]
[1641221760403,0.65623,3807.5,3807.4,0.1001]
[1641221761103,0.65623,3807.5,3805.6,1.05924212]
[1641221761104,0.65657,3807.1,3805.8,0.314]
[1641221761302,0.65657,3807.1,3805.6,1.37243602]
[1641221761503,0.65657,3807.1,3805.9,0.65668]
[1641221761957,0.65665,3806.5,3806.1,0.00397897]
[1641221762360,0.01264516,3806.2,3804.7,0.6568153]
[1641221762566,1.05627752,3805.8,3804.8,5.25813155]
[1641221762765,1.05627752,3805.8,3805.0,1.31352]
[1641221763367,3.94084,3805.9,3805.7,2.993e-05]
[1641221763669,3.94084,3805.9,3805.7,1.31337143]
[1641221763867,8.29084,3805.9,3805.7,0.65671993]
[1641221764067,8.29084,3805.9,3805.7,0.30002993]
[1641221764469,8.29084,3805.9,3805.7,2.993e-05]
[1641221764871,5.09084,3805.9,3805.7,2.993e-05]
[1641221765073,0.65683,3805.5,3805.2,1.31349]
[1641221765269,0.65684,3805.4,3805.2,1.31349]
[1641221765470,0.65684,3805.4,3805.3,0.00284212]
[1641221766718,0.65665,3805.6,3805.3,0.31684212]
[1641221766919,0.06126338,3805.7,3805.4,0.65663]
[1641221767118,0.06126338,3805.7,3805.5,1.54877261]
[1641221767417,0.06126338,3805.7,3805.6,10.51437685]
[1641221767622,0.06126338,3805.7,3805.6,11.12837685]
[1641221768020,0.06126338,3805.7,3805.6,1.92837685]
[1641221768819,0.06126338,3805.7,3805.6,6.32837685]
[1641221769219,0.65661,3805.9,3805.6,6.32837685]
[1641221769854,1.31322,3806.3,3806.0,0.53893393]
[1641221770058,0.91334508,3808.9,3807.4,0.5667]
[1641221770059,0.82854629,3807.9,3807.4,0.5667]
[1641221770259,0.82854629,3807.9,3807.6,0.5667]
[1641221770560,3.38632597,3807.9,3807.8,0.8667]
[1641221770756,3.38632597,3807.9,3807.8,1.1807]
[1641221770957,3.39655759,3807.9,3807.8,1.1807]
[1641221771359,3.39655759,3807.9,3807.8,1.83698]
[1641221771758,3.80838238,3807.9,3807.8,1.83698]
[1641221774306,3.80838238,3807.9,3807.8,1.8398646]
[1641221775110,3.80838238,3807.9,3807.8,1.1639846]
[1641221775314,3.80838238,3807.9,3807.8,0.5667846]
[1641221777352,3.80838238,3807.9,3807.8,0.8667846]
[1641221777752,3.80838238,3807.9,3807.8,1.8371146]
[1641221777959,2.55777968,3808.7,3808.0,0.5667]
[1641221777960,0.65621,3808.5,3808.0,0.5667]
[1641221778156,2.55777968,3808.7,3808.4,0.5667]
[1641221778157,3.21393968,3808.7,3808.4,0.5667]
[1641221778355,3.21393968,3808.7,3808.6,3.6167]
[1641221778555,3.21393968,3808.7,3808.6,0.8807]
[1641221778755,3.21848707,3808.7,3808.6,0.8807]
[1641221778956,1.31686739,3808.7,3808.6,0.8807]
[1641221781110,1.31686739,3808.7,3808.3,0.50148895]
[1641221781111,3.09753851,3808.7,3808.3,0.50148895]
[1641221781410,0.01248791,3808.4,3808.3,0.50148895]
[1641221781613,0.01248791,3808.4,3807.3,2.42518629]
[1641221781809,0.65647,3807.9,3807.3,2.42518629]
[1641221782010,0.65647,3807.9,3807.4,1.18730634]
[1641221782211,0.65647,3807.9,3807.4,1.77810504]
[1641221782410,0.65647,3807.9,3807.5,0.00227369]
[1641221782610,1.31289,3807.8,3807.5,0.00227369]
[1641221783011,1.31289,3807.8,3807.6,0.314]
[1641221783411,1.31289,3807.8,3807.7,0.00113684]
[1641221784459,2.6256,3807.8,3807.7,0.00113684]
[1641221785862,1.3128,3807.9,3807.7,0.00113684]
[1641221786062,1.3128,3807.9,3807.7,0.65739684]
[1641221786264,1.3128,3807.9,3807.7,0.95739684]
[1641221786662,1.3128,3807.9,3807.7,1.95739684]
[1641221788316,1.31248,3808.2,3807.8,0.314]
[1641221788516,2.36707098,3809.5,3807.9,9.5]
[1641221788715,2.36707098,3809.7,3808.6,0.6561]
[1641221788915,2.36707098,3809.7,3808.7,0.314]
[1641221789116,0.65609,3809.1,3808.7,0.314]
[1641221789315,0.65609,3809.1,3808.9,1.37165563]
[1641221789517,0.55609,3809.1,3809.0,0.314]
[1641221789916,0.56063739,3809.1,3809.0,0.314]
[1641221790121,0.56063739,3809.1,3809.0,0.614]
[1641221790316,0.56063739,3809.1,3809.0,1.92609]
[1641221790717,0.00454739,3809.1,3809.0,2.9653037]
[1641221790922,0.65596,3809.6,3809.1,6.7]
[1641221791117,0.65596,3809.6,3809.2,1.314]
[1641221791319,0.65596,3809.6,3809.2,1.35047031]
[1641221791518,0.65596,3809.6,3809.4,1.31188]
[1641221791719,0.65596,3809.6,3809.5,0.314]
[1641221791953,0.65937054,3809.7,3809.5,0.314]
[1641221792256,0.00284211,3809.6,3809.5,1.51887929]
[1641221792453,0.00284211,3809.6,3809.5,0.314]
[1641221792655,0.00284211,3809.6,3809.5,1.314]
[1641221792854,0.00284211,3809.6,3809.5,0.96992]
[1641221793256,2.14494964,3809.6,3809.3,1.1806911]
[1641221793458,2.14494964,3809.6,3808.5,4.6984]
[1641221793459,1.31228,3809.4,3809.0,1.31216]
[1641221793657,1.31228,3809.4,3809.2,0.0619653]
[1641221793856,0.00113684,3809.3,3809.2,0.0619653]
[1641221794560,1.21341684,3809.4,3809.2,0.0619653]
[1641221795057,0.92047661,3809.4,3809.2,0.0619653]
[1641221795258,0.92047661,3809.4,3809.0,0.8905159]
[1641221795459,0.92047661,3809.4,3809.0,0.3]
[1641221795717,0.92047661,3809.4,3809.1,0.00113684]
[1641221796308,0.92047661,3809.4,3809.0,0.65616]
[1641221796511,0.92047661,3809.4,3809.1,0.00113684]
[1641221797008,0.92047661,3809.4,3809.0,0.00149024]
[1641221797209,2.62454,3809.5,3809.1,0.00149024]
[1641221797210,2.62492,3809.3,3809.1,0.00149024]
[1641221797509,2.62492,3809.3,3808.9,0.00113685]
[1641221797908,2.62492,3809.3,3808.7,1.61226]
[1641221797909,2.62492,3809.3,3808.8,0.00170527]
[1641221798717,2.52492,3809.3,3808.8,0.00170527]
[1641221799316,0.65622,3809.1,3808.9,0.65617]
[1641221799558,0.65622,3809.1,3808.9,0.95617]
[1641221799758,1.31238,3809.1,3808.9,0.95617]
[1641221800561,1.31238,3809.1,3808.9,0.65617]
[1641221800763,2.25024192,3809.0,3808.8,0.00170527]
[1641221800962,6.21237194,3808.9,3808.8,0.00170527]
[1641221801166,6.21237194,3808.9,3806.7,4.45353239]
[1641221801167,8.2,3808.8,3806.7,4.45353239]
[1641221801366,1.96954,3808.6,3808.2,0.06196657]
[1641221801562,0.01219963,3808.3,3808.2,6.657e-05]
[1641221801762,2.37927061,3808.3,3806.7,4.45353239]
[1641221801964,3.489418,3808.3,3806.7,4.45353239]
[1641221802166,0.10477896,3808.2,3806.8,0.00397896]
[1641221802363,0.75980896,3808.2,3806.8,0.00397896]
[1641221802566,1.20797551,3807.2,3806.2,1.0505024]
[1641221802767,0.65665,3806.9,3806.2,1.0505024]
[1641221803065,0.65665,3806.9,3806.4,0.0022737]
[1641221803503,0.65667,3806.7,3806.5,0.6566]
[1641221803904,0.65667,3806.7,3806.6,0.00113685]
[1641221808052,0.65667,3806.7,3806.6,0.00258896]
[1641221808257,0.65644,3806.9,3806.6,0.00258896]
[1641221808457,0.00170527,3807.1,3806.7,0.314]
[1641221808658,7.26873085,3809.1,3807.1,0.41039542]
[1641221808659,4.45430739,3808.1,3807.1,0.41039542]
[1641221808858,4.45430739,3808.1,3807.0,8.45]
[1641221808859,4.45430739,3808.2,3807.3,0.41039542]
[1641221809059,4.45430739,3808.2,3807.4,0.72439542]
[1641221809458,0.00227369,3807.5,3807.4,1.02439542]
[1641221810058,0.06196936,3808.3,3807.8,0.41039542]
[1641221810258,0.06196936,3808.3,3808.0,0.41039542]
[1641221810460,1.70107482,3809.2,3807.9,0.314]
[1641221810461,1.70107482,3809.2,3808.3,4.7]
[1641221810711,1.70107482,3809.4,3808.8,0.41039542]
[1641221810913,1.70107482,3809.4,3808.8,1.02439542]
[1641221810914,0.00909478,3809.1,3808.8,1.02439542]
[1641221811112,0.65613,3809.1,3809.0,0.41039542]
[1641221811511,0.65613,3809.1,3809.0,0.71039542]
[1641221812516,3.62525129,3809.1,3809.0,0.71039542]
[1641221813119,0.65613,3809.1,3809.0,0.71039542]
[1641221814116,1.96808,3809.8,3809.0,0.71039542]
[1641221814320,0.65599,3809.8,3809.5,0.41039542]
[1641221814560,0.65599,3809.8,3809.6,0.41039542]
[1641221815363,0.656,3809.7,3809.6,0.41039542]
[1641221815560,0.656,3809.7,3809.6,1.06638542]
[1641221816464,1.31195,3810.2,3809.6,1.06638542]
[1641221816465,0.65595,3810.1,3809.6,1.06638542]
[1641221816875,0.67072901,3810.1,3809.6,1.06638542]
[1641221817269,0.67072901,3810.1,3810.0,0.41039542]
[1641221817270,0.01477901,3810.1,3810.0,0.41039542]
[1641221817669,0.01477901,3810.1,3810.0,0.71039542]
[1641221819113,0.01477901,3810.1,3810.0,0.71145682]
[1641221819316,0.01477901,3810.1,3810.0,0.71251822]
[1641221822176,0.01477901,3810.1,3809.7,0.06207488]
[1641221822177,5.055385,3809.8,3809.7,0.06207488]
[1641221822375,5.055385,3809.8,3807.5,8.38742766]
[1641221822376,4.55,3809.7,3807.5,8.38742766]
[1641221822574,2.37290808,3809.6,3807.7,2.95]
[1641221822770,2.37290808,3809.6,3807.5,6.38742766]
[1641221822771,2.38484497,3809.6,3807.5,6.38742766]
[1641221822971,1.03285736,3808.8,3807.5,1.96869]
[1641221823172,2.6256,3809.3,3807.4,0.65641]
[1641221823374,0.00682108,3808.7,3807.4,0.65641]
[1641221823577,0.65641,3808.1,3807.4,0.65641]
[1641221823978,0.00284212,3808.0,3807.1,1.31284]
[1641221824379,0.00227369,3807.9,3807.2,0.00170527]
[1641221824782,0.65647,3807.7,3807.4,0.5251684]
[1641221825824,0.65647,3807.7,3807.2,1.05198697]
[1641221825825,0.65647,3807.7,3807.2,0.00170527]
[1641221826026,2.33587018,3807.6,3807.2,0.00170527]
[1641221826225,0.65659,3807.5,3806.6,0.00511581]
[1641221826423,0.65661,3807.1,3806.6,0.00511581]
[1641221827732,1.31319,3807.0,3806.8,0.5252609]
[1641221828032,1.31319,3807.0,3806.9,0.00341054]
[1641221828635,1.31322,3807.1,3806.9,0.00341054]
[1641221828836,1.31322,3807.1,3806.9,1.05371614]
[1641221828837,0.65661,3807.1,3806.9,1.05371614]
[1641221829135,0.00227369,3807.9,3807.0,0.31684212]
[1641221829334,0.00227369,3807.9,3807.0,0.61684212]
[1641221829563,0.00170527,3807.8,3807.1,0.00227369]
[1641221829767,0.00170527,3807.8,3807.2,1.61236973]
[1641221829970,0.00113685,3807.7,3807.2,1.61236973]
[1641221830267,0.00113685,3807.7,3807.4,1.1814038]
[1641221830469,0.65637,3808.1,3807.5,0.314]
[1641221830672,2.96967275,3808.0,3807.5,0.614]
[1641221830868,2.97251487,3808.0,3807.5,0.614]
[1641221831067,0.00227369,3807.9,3807.5,0.614]
[1641221831269,0.00227369,3807.9,3807.5,0.564]
[1641221831467,0.00170527,3807.8,3807.7,0.65638]
[1641221831669,0.00170527,3807.8,3807.7,4.07038]
[1641221832067,0.00170527,3807.8,3807.7,0.97038]
[1641221833314,0.00170527,3807.8,3807.7,0.3]
[1641221833913,0.00170527,3807.8,3807.6,1.3501457]
[1641221834114,0.65814527,3807.8,3807.6,1.3501457]
[1641221834317,0.00113685,3807.7,3807.6,1.3501457]
[1641221835717,0.00113685,3807.7,3807.6,0.3]
[1641221836117,0.00113685,3807.7,3807.5,0.4594785]
[1641221836118,0.00113685,3807.7,3807.5,0.7594785]
[1641221836618,3.58590378,3807.7,3807.5,0.7594785]
[1641221836821,0.36576913,3807.1,3807.0,2.437e-05]
[1641221837299,0.36576913,3807.1,3807.0,0.00172964]
[1641221838694,0.36576913,3807.1,3806.7,0.06172489]
[1641221838896,2.26936994,3807.0,3806.7,0.06172489]
[1641221839094,2.92611994,3807.0,3806.8,0.00113684]
[1641221839297,1.2977118,3806.9,3806.8,0.00113684]
[1641221839502,7.95,3806.8,3806.3,0.00219119]
[1641221839696,7.95,3806.8,3805.3,0.9195047]
[1641221839697,7.71609916,3806.8,3805.3,0.9195047]
[1641221839895,1.1024,3806.7,3806.4,0.0022737]
[1641221840094,1.38124,3806.7,3806.4,0.0022737]
[1641221840495,0.6569,3805.8,3804.5,2.36609916]
[1641221840732,0.0984,3806.6,3805.3,0.9194716]
[1641221840733,0.00113685,3806.6,3805.3,0.9194716]
[1641221841129,0.00113685,3806.6,3806.5,0.00097791]
[1641221843533,0.00113685,3806.6,3806.5,0.31497791]
[1641221843732,0.00113685,3806.6,3806.5,0.61497791]
[1641221843932,0.00113685,3806.6,3806.5,7.46497791]
[1641221844134,0.00113685,3806.6,3806.5,8.46497791]
[1641221844332,0.06172572,3806.9,3806.6,1.41322094]
[1641221844581,0.06172572,3806.9,3806.8,0.65649]
[1641221844780,0.06172572,3806.9,3806.8,0.95649]
[1641221845181,0.36576913,3807.1,3806.8,0.95649]
[1641221845381,0.36576913,3807.1,3806.9,0.9190358]
[1641221845585,0.00227369,3807.0,3806.9,0.9190358]
[1641221845781,0.00227369,3807.0,3806.9,1.5190358]
[1641221845980,0.00227369,3807.0,3806.7,1.27049]
[1641221845981,0.00227369,3807.0,3806.7,0.65649]
[1641221846183,0.00227369,3807.0,3806.6,1.31297]
[1641221846382,0.00170527,3806.9,3806.6,1.26297]
[1641221846784,0.00113685,3806.8,3806.6,1.26297]
[1641221847581,0.00113685,3806.8,3806.6,1.722631]
[1641221847981,0.00113685,3806.8,3806.7,0.3]
[1641221848613,0.00113685,3806.8,3806.7,6.40910771]
[1641221849615,0.00113685,3806.8,3806.7,4.15910771]
[1641221849817,0.00113685,3806.8,3806.7,2.9]
[1641221852174,0.00113685,3806.8,3806.7,2.90190976]
[1641221852376,0.00113685,3806.8,3806.7,2.60190976]
[1641221852776,2.41760228,3806.8,3806.7,2.60190976]
[1641221853177,0.00113685,3806.8,3806.7,2.60190976]
[1641221853579,0.00113685,3806.8,3806.7,3.20190976]
[1641221860873,0.00113685,3806.8,3806.7,2.60190976]
[1641221862075,0.00113685,3806.8,3806.7,3.20190976]
[1641221863078,0.00113685,3806.8,3806.7,2.90190976]
[1641221863750,0.00113685,3806.8,3806.7,2.60190976]
[1641221864150,2.97156055,3806.8,3806.7,2.60190976]
[1641221865048,0.00113685,3806.8,3806.7,2.90190976]
[1641221865851,0.00113685,3806.8,3806.7,3.20190976]
[1641221866451,1.29941934,3806.8,3806.7,3.20190976]
[1641221866651,1.29941934,3806.8,3806.7,2.90190976]
[1641221867779,2.97179109,3806.8,3806.7,2.90190976]
[1641221868279,0.00113685,3806.8,3806.7,2.85190976]
[1641221869780,0.00113685,3806.8,3806.7,3.15190976]
[1641221869980,2.97179109,3806.8,3806.7,3.15190976]
[1641221870919,0.00113685,3806.8,3806.7,2.85190976]
[1641221871119,2.23273935,3806.8,3806.7,2.85190976]
[1641221871326,0.00113685,3806.8,3806.7,2.85190976]
[1641221871525,2.97179109,3806.8,3806.7,2.85190976]
[1641221871725,5.25,3806.7,3806.2,0.06172526]
[1641221871927,0.65686,3806.5,3806.2,0.06172526]
[1641221872126,2.33432987,3806.4,3806.3,0.00170527]
[1641221872327,0.65686,3806.5,3806.3,0.00170527]
[1641221873727,0.65686,3806.5,3805.7,0.30511581]
[1641221873929,0.65686,3806.5,3806.3,0.00302071]
[1641221874327,0.65678,3806.7,3806.4,0.00113685]
[1641221876772,0.00113685,3806.8,3806.4,0.00113685]
[1641221877170,2.97072592,3806.6,3806.4,0.00113685]
[1641221877972,0.00113685,3806.8,3806.4,0.00113685]
[1641221878420,2.97072592,3806.8,3806.4,0.00113685]
[1641221879822,0.42724806,3807.1,3806.4,0.00113685]
[1641221879823,2.97072592,3807.0,3806.4,0.00113685]
[1641221880224,2.97299961,3807.0,3806.4,0.00113685]
[1641221880828,2.97299961,3807.0,3806.4,2.90113685]
[1641221881030,2.97299961,3807.0,3806.4,3.20113685]
[1641221882078,3.62970961,3807.0,3806.4,3.65714106]
[1641221882277,1.32432891,3806.9,3806.4,3.65714106]
[1641221882478,1.32432891,3806.9,3806.4,3.19745916]
[1641221882681,0.00113685,3806.8,3806.4,3.19745916]
[1641221882878,0.00113685,3806.8,3806.4,2.60113685]
[1641221883084,5.37236559,3806.8,3806.4,2.60113685]
[1641221883282,5.47396559,3806.8,3806.4,2.60113685]
[1641221883484,2.97072592,3806.7,3806.4,2.60113685]
[1641221883684,2.2264279,3806.6,3806.4,2.60113685]
[1641221883887,2.30548796,3806.6,3806.4,2.60113685]
[1641221884087,2.97072592,3806.7,3806.4,2.60113685]
[1641221884288,0.65685,3806.6,3806.4,3.20113685]
[1641221884590,2.29256879,3806.5,3806.4,3.20113685]
[1641221884786,2.39096879,3806.5,3806.4,3.20113685]
[1641221884987,2.39496879,3806.5,3806.4,3.20113685]
[1641221885187,5.36569471,3806.5,3806.4,3.20113685]
[1641221885388,5.36649471,3806.5,3806.4,3.20113685]
[1641221885589,5.26329471,3806.5,3806.4,3.20113685]
[1641221885819,2.97072592,3806.5,3806.4,3.20113685]
[1641221886022,2.97072592,3806.5,3806.4,2.90113685]
[1641221886320,2.97072592,3806.5,3806.4,3.20113685]
[1641221886820,2.97072592,3806.5,3806.4,2.90113685]
[1641221887226,2.97072592,3806.6,3806.4,2.90113685]
[1641221887824,2.97072592,3806.6,3806.4,3.20113685]
[1641221888121,2.97072592,3806.5,3806.4,3.20113685]
[1641221888927,2.97072592,3806.6,3806.4,2.90113685]
[1641221889227,2.97072592,3806.5,3806.4,2.90113685]
[1641221890063,2.97072592,3806.6,3806.4,2.90113685]
[1641221892770,2.97072592,3806.6,3806.4,3.20113685]
[1641221892969,1.05867097,3806.6,3806.4,3.20113685]
[1641221893633,0.0626157,3806.8,3806.4,3.20113685]
[1641221894032,0.06549358,3807.1,3806.7,0.4596029]
[1641221894437,0.00113684,3807.0,3806.7,0.4596029]
[1641221894635,0.00113684,3807.0,3806.7,0.7596029]
[1641221895038,0.00113684,3807.0,3806.8,0.3]
[1641221895836,0.00113684,3807.0,3806.5,0.30170527]
[1641221896035,0.65673,3806.9,3806.5,0.30170527]
[1641221896237,0.65673,3806.9,3806.6,0.00113685]
[1641221899066,0.65673,3806.9,3806.5,0.00170527]
[1641221900839,0.65677,3806.8,3806.5,0.00170527]
[1641221901042,1.37949499,3806.6,3806.5,0.00170527]
[1641221901441,0.65677,3806.8,3806.5,0.00170527]
[1641221902541,1.31361,3806.8,3806.5,0.00170527]
[1641221902745,1.27361379,3806.7,3806.5,0.00170527]
[1641221903950,0.65677,3806.8,3806.5,0.00170527]
[1641221905884,6.75,3806.6,3805.6,0.06172608]
[1641221906085,9.578,3806.7,3804.7,6.21]
[1641221906086,7.85,3806.0,3804.7,6.21]
[1641221906286,2.74711852,3805.9,3805.7,0.00454739]
[1641221906484,3.9,3805.7,3804.7,6.21]
[1641221906686,1.22589579,3805.0,3804.9,0.00454739]
[1641221907084,0.65714,3805.1,3804.8,0.00511581]
[1641221907286,0.65714,3805.1,3804.9,0.00160434]
[1641221907586,1.31428,3805.1,3804.9,0.00160434]
[1641221907789,1.31428,3805.1,3805.0,0.00397897]
[1641221907985,2.63209882,3805.1,3805.0,0.00397897]
[1641221908441,1.97495882,3805.1,3805.0,0.00397897]
[1641221910242,1.31781882,3805.1,3805.0,0.00397897]
[1641221910445,3.56020633,3805.1,3805.0,0.00397897]
[1641221910644,3.56020633,3805.1,3804.9,0.00160434]
[1641221910645,3.56020633,3805.1,3804.4,0.06172872]
[1641221910842,0.65716,3804.9,3804.4,0.06172872]
[1641221911042,0.65716,3804.9,3804.5,0.00284211]
[1641221911043,2.43306278,3804.8,3804.5,0.00284211]
[1641221911244,2.43306278,3804.8,3803.6,3.8633]
[1641221911245,3.46822278,3804.8,3803.6,3.8633]
[1641221911446,0.65729,3804.2,3803.0,4.45601762]
[1641221911644,0.65729,3804.2,3803.0,3.43919241]
[1641221911843,2.5740943,3804.6,3804.4,1.94271]
[1641221912080,2.5740943,3804.6,3803.1,0.00341054]
[1641221912081,0.00227369,3804.1,3803.1,0.00341054]
[1641221912278,1.00938611,3804.5,3803.1,0.00341054]
[1641221912279,0.65724,3803.8,3803.1,0.00341054]
[1641221912476,0.65724,3803.8,3803.0,0.00397897]
[1641221913281,2.92582789,3803.8,3803.0,0.00397897]
[1641221913484,0.65724,3803.8,3803.0,0.00397897]
[1641221913685,0.84904,3803.8,3802.8,0.00511581]
[1641221914486,1.21093816,3803.1,3802.8,0.00511581]
[1641221914685,0.65735,3803.1,3802.8,0.00511581]
[1641221914885,2.5351255,3804.4,3803.9,0.24899723]
[1641221915086,1.0,3805.0,3803.8,0.39031258]
[1641221915087,0.38296215,3805.0,3803.8,0.39031258]
[1641221915299,3.40002206,3805.2,3803.0,0.01271378]
[1641221915300,3.40002206,3805.2,3804.9,0.01232417]
[1641221915740,3.40002206,3805.2,3804.8,0.7931]
[1641221915940,0.65698,3805.2,3804.8,1.3931]
[1641221916240,0.65698,3805.2,3804.8,1.0931]
[1641221916740,0.65698,3805.2,3804.8,0.3]
[1641221916940,0.65698,3805.2,3804.0,11.570842]
[1641221917146,0.65698,3805.2,3804.1,0.3]
[1641221917346,0.65698,3805.2,3804.1,0.30170527]
[1641221917645,1.35071669,3804.9,3804.2,0.00113684]
[1641221917846,0.6571,3804.7,3804.2,0.00113684]
[1641221918248,0.6571,3804.7,3804.2,0.00263378]
[1641221918447,0.6571,3804.7,3804.2,0.00377062]
[1641221919702,0.6571,3804.7,3803.9,0.378]
[1641221919903,0.3,3804.1,3802.8,3.7128]
[1641221920106,0.65724,3803.9,3802.8,3.7128]
[1641221920301,0.65724,3803.9,3802.7,0.00252066]
[1641221920709,0.65724,3803.9,3802.8,0.00795793]
[1641221920916,1.14603964,3803.5,3802.8,0.00795793]
[1641221921511,1.14603964,3803.5,3802.8,2.60795793]
[1641221921907,1.14603964,3803.5,3802.9,0.00738951]
[1641221922408,0.65735,3803.2,3802.9,0.00738951]
[1641221923752,0.65727,3803.5,3802.9,0.00738951]
[1641221925355,0.65732,3803.2,3802.9,0.00738951]
[1641221927096,1.31452,3803.8,3802.9,0.00738951]
[1641221927296,0.65725,3803.6,3802.9,0.00738951]
[1641221928900,1.31459,3803.6,3802.9,0.00738951]
[1641221929099,0.65729,3803.5,3802.9,0.00738951]
[1641221930001,0.65729,3803.5,3803.0,0.00118542]
[1641221930199,2.97157709,3803.4,3803.0,0.00118542]
[1641221930399,2.97157709,3803.4,3803.1,0.00625266]
[1641221931043,2.97157709,3803.4,3803.1,0.30625266]
[1641221931445,2.97157709,3803.4,3803.2,0.00568424]
[1641221931844,5.96697611,3804.0,3803.2,0.66285424]
[1641221932047,2.97157709,3804.0,3803.2,0.30568424]